[Event "Saint Louis Norm Congress-GM 2022"]
[Site "Saint Louis"]
[Date "2022.05.21"]
[Round "4.5"]
[White "Repka, Christopher"]
[Black "Park, Evan"]
[Result "1-0"]
[ECO "C54"]
[WhiteElo "2524"]
[BlackElo "2431"]
[Annotator "TA"]
[PlyCount "137"]
[EventDate "2022.05.20"]
[EventType "tourn"]
[EventCountry "USA"]
[SourceTitle "playchess.com"]
[Source "ChessBase"]
[SourceQuality "1"]
[TimeControl "5400+30"]

{[%evp 12,137,4,-31,-39,-38,-26,-37,-30,-39,6,-68,-81,-70,-69,-79,0,-13,-7,-12,0,0,36,37,47,54,22,43,95,91,97,86,91,83,102,95,101,86,100,100,98,96,98,95,242,213,583,583,576,562,677,670,667,516,473,400,357,335,380,271,439,437,401,368,534,532,677,670,2250,2048,1791,1756,1662,1651,1621,1344,977,822,822,649,643,621,5621,613,608,584,562,525,5385,647,637,625,584,512,504,447,515,502,470,397,607,593,527,466,706,703,931,911,890,858,877,854,1112,1064,2506,2218,29971,29972,29985,29986,29986,29987,29987,29988,29988,29989,29989,29990]} 1. e4 {[%emt 0:02:12]} e5 {[%emt 0:00:19]} 2. Nf3 {[%emt 0:00:48]} Nc6 {[%emt 0:00:34]} 3. Bc4 {[%emt 0:00:39]} Bc5 {[%emt 0:02:22]} 4. c3 {[%emt 0:01:27]} Nf6 {[%emt 0:00:10]} 5. d3 {[%emt 0:00:07]} d6 {[%emt 0:00:25]} 6. b4 {[%emt 0:00:52]} Bb6 {[%emt 0:00:16]} 7. Qb3 {[%emt 0:00:04] Recently 7.0-0 got a lot of attention.} O-O {[%emt 0:01:42] C54: Giuoco Piano: 4 c3 Nf6, main lines with 5 d4 and 5 d3.} 8. a4 {[%emt 0:00:02]} a5 {[%emt 0:03:47]} 9. b5 {[%emt 0:00:04]} Ne7 {[%emt 0:00:12] Black is slightly better.} 10. O-O {[%emt 0:01:15]} c6 {[%emt 0:07:23] [#] Threatens to win with ...d5.} 11. Qa2 $146 {[%emt 0:00:44]} (11. Nbd2 $11) ({Predecessor:} 11. bxc6 bxc6 12. Ba3 Rb8 13. Qa2 Ng6 14. Nbd2 h6 15. d4 c5 16. Rab1 Bd7 17. Bb5 {½-½ (37) Kaniak,J (1813)-Derylo,K (1860) Darlowko 2019}) 11... d5 $15 {[%emt 0:03:41]} 12. exd5 {[%emt 0:00:59]} cxd5 {[%emt 0:00:17]} 13. Bb3 {[%emt 0:00:04]} Bc7 {[%emt 0:09:39]} ({Black should try} 13... Ng6 $17) 14. Re1 $11 {[%emt 0:18:34]} Ng6 {[%emt 0:02:03]} 15. Bg5 $1 {[%emt 0:01:52]} Be6 {[%emt 0:00:39]} 16. Nbd2 {[%emt 0:00:23]} h6 {[%emt 0:06:34]} 17. Bxf6 {[%emt 0:00:21]} gxf6 {[%emt 0:00:24]} 18. c4 $1 {[%emt 0:00:48]} Nf4 {[%emt 0:08:00]} 19. cxd5 {[%emt 0:00:18]} Nxd5 {[%emt 0:01:16]} (19... Bg4 $14) 20. Ne4 {[%emt 0:00:38]} Nb4 {[%emt 0:06:19] [#]} 21. Qd2 {[%emt 0:07:31][%cal Od2h6]} Kh7 {[%emt 0:01:15]} (21... Bxb3 $2 22. Qxh6 f5 23. Nf6+ Qxf6 24. Qxf6 $18) 22. Bxe6 {[%emt 0:03:14] White is more active.} fxe6 {[%emt 0:00:03] [#]} 23. d4 $1 {[%emt 0:00:12]} Bb6 {[%emt 0:07:15]} 24. Rad1 {[%emt 0:03:29][%cal Ba1d1,Bd1d4,Bd4g4][%mdl 32]} (24. dxe5 $6 Qxd2 25. Nfxd2 Nc2 $11) 24... exd4 {[%emt 0:06:50]} 25. Nxd4 $40 {[%emt 0:00:29][%mdl 128] White is out for blood.} Bxd4 {[%emt 0:01:52]} 26. Qxd4 {[%emt 0:00:04]} Qxd4 {[%emt 0:00:27]} 27. Rxd4 {[%emt 0:00:04] Hoping for f3.} Kg6 {[%emt 0:06:41] This costs Black the game.} (27... Rfd8 $16 28. Rd7+ (28. Nxf6+ Kg6 $14) 28... Rxd7 29. Nxf6+ Kg7 30. Nxd7 Rc8) 28. Nd6 $18 {[%emt 0:02:38]} Nc2 $2 {[%emt 0:02:38]} (28... e5 29. Rg4+ Kh7 30. Nxb7 Rfb8) 29. Rg4+ {[%emt 0:00:32]} Kh5 {[%emt 0:00:05] [#]} 30. h3 $1 {[%emt 0:05:37][%cal Od6e4] Intending Ne4! and mate.} f5 {[%emt 0:01:05] Prevents Ne4.} (30... Rg8 31. Rxg8) 31. Re5 {[%emt 0:00:21]} Rg8 {[%emt 0:00:27]} 32. Rxg8 {[%emt 0:03:55]} Rxg8 {[%emt 0:00:05]} 33. Rxe6 {[%emt 0:00:04][%mdl 4096] Endgame KRN-KRN} Nd4 {[%emt 0:00:06]} 34. Re3 {[%emt 0:00:05]} b6 {[%emt 0:00:50]} 35. Rd3 {[%emt 0:01:04]} Ne6 {[%emt 0:00:31]} (35... Ne2+ 36. Kf1 Nf4) 36. Nc4 {[%emt 0:14:03]} Nc5 {[%emt 0:02:29]} (36... Nf4 $2 37. Rf3 Nxg2 38. Rg3 Rxg3 39. fxg3) 37. Rd6 {[%emt 0:02:24]} Nxa4 {[%emt 0:00:38]} (37... Rg6 {was worth a try.} 38. Rxb6 Rxb6 39. Nxb6 Kg5) 38. Ne5 {[%emt 0:00:20]} ({Weaker is} 38. Nxb6 Nxb6 39. Rxb6 a4 $16) 38... Nc3 {[%emt 0:02:52]} 39. Rxb6 {[%emt 0:01:39] And now Nf7 would win.} a4 {[%emt 0:00:30]} 40. Nf7 {[%emt 0:10:38][%csl Gf7][%cal Rb6h6]} Rg6 {[%emt 0:00:19] [#]} 41. Rxg6 $1 {[%emt 0:00:33]} ({Worse is} 41. Ra6 Rxa6 42. g4+ (42. bxa6 Nb5 $11) 42... fxg4 43. bxa6 Nb5 44. hxg4+ Kg6 45. Ne5+ Kg5 $11) 41... Kxg6 {[%emt 0:00:09] [#] KN-KN} 42. b6 $1 {[%emt 0:00:01]} a3 {[%emt 0:01:31]} 43. b7 {[%emt 0:00:05]} a2 {[%emt 0:01:50]} 44. Ne5+ {[%emt 0:00:03]} Kf6 {[%emt 0:03:50]} 45. b8=Q {[%emt 0:00:07] Threatening mate with Qd6+.} a1=Q+ {[%emt 0:00:05] KQN-KQN} 46. Kh2 {[%emt 0:00:05] White wants to mate with Qd6+.} Ne4 {[%emt 0:06:09] [#] Prevents Qd6+.} 47. Ng4+ {[%emt 0:01:29][%mdl 512]} Ke6 {[%emt 0:05:07]} (47... Kf7 48. Qc7+) 48. Qc8+ {[%emt 0:00:03]} Ke7 {[%emt 0:00:45]} 49. Qxf5 {[%emt 0:00:05]} Nd2 {[%emt 0:00:18] ( -> ...Nf1+)} 50. Qh7+ {[%emt 0:00:05]} (50. Qc5+ $142 Kd7 51. Qd5+ Kc8 52. Qxd2) 50... Ke8 {[%emt 0:00:13]} 51. Qg6+ {[%emt 0:02:02]} Ke7 {[%emt 0:00:03]} 52. Ne3 {[%emt 0:02:03]} Qe5+ {[%emt 0:00:48]} 53. Qg3 {[%emt 0:00:14]} Qe6 {[%emt 0:00:19]} 54. Qc7+ {[%emt 0:01:20]} Ke8 {[%emt 0:00:15]} 55. Qb8+ {[%emt 0:00:04]} Kf7 {[%emt 0:00:18]} (55... Kd7 $142 56. Qa7+ Kc8) 56. Qf4+ {[%emt 0:00:23]} Ke8 {[%emt 0:00:20]} 57. Ng4 {[%emt 0:00:44]} Qe1 {[%emt 0:00:23]} (57... h5 $142 58. Qxd2 Qe7) 58. h4 {[%emt 0:02:05]} h5 {[%emt 0:01:34]} 59. Nf6+ {[%emt 0:01:14]} Ke7 {[%emt 0:00:01]} 60. Nxh5 {[%emt 0:00:19]} Nf1+ {[%emt 0:00:13]} 61. Kh3 {[%emt 0:00:05]} Qe6+ {[%emt 0:00:09]} 62. g4 {[%emt 0:00:28]} Qe2 {[%emt 0:00:03]} 63. Ng3 {[%emt 0:00:31]} Nxg3 {[%emt 0:00:48]} 64. Kxg3 {[%emt 0:00:09] KQ-KQ. White mates.} Qd3+ {[%emt 0:00:07]} 65. Qe3+ {[%emt 0:00:05]} Qxe3+ {[%emt 0:00:06]} 66. fxe3 {[%emt 0:00:04]} Ke6 {[%emt 0:00:07]} 67. Kf4 {[%emt 0:00:04]} Kd5 {[%emt 0:00:06]} 68. Kf5 {[%emt 0:00:25]} Kc4 {[%emt 0:00:06]} 69. Ke4 {[%emt 0:00:28] Weighted Error Value: White=0.53/Black=0.52} 1-0

[Event "Saint Louis Norm Congress-GM 2022"]
[Site "Saint Louis"]
[Date "2022.05.21"]
[Round "5.1"]
[White "Park, Evan"]
[Black "Stearman, Josiah"]
[Result "1/2-1/2"]
[WhiteElo "2431"]
[BlackElo "2375"]
[Annotator "TA"]
[PlyCount "32"]
[EventDate "2022.05.20"]
[EventType "tourn"]
[EventCountry "USA"]
[SourceTitle "playchess.com"]
[Source "ChessBase"]
[SourceQuality "1"]
[TimeControl "5400+30"]

{[%evp 12,19,12,20,36,27,31,33,35,28]} 1. e4 {[%emt 0:00:01]} e5 {[%emt 0:00:04]} 2. Nf3 {[%emt 0:00:08]} Nc6 {[%emt 0:00:07]} 3. Bb5 {[%emt 0:00:34]} Nf6 {[%emt 0:00:05]} 4. O-O {[%emt 0:00:40]} Nxe4 {[%emt 0:00:08]} 5. Re1 {[%emt 0:01:13]} Nd6 {[%emt 0:00:07]} 6. Nxe5 {[%emt 0:00:04]} Be7 {[%emt 0:00:06]} 7. Bf1 {[%emt 0:00:11]} Nf5 {[%emt 0:00:04] C67: Ruy Lopez: Berlin Defence: 4 0-0 Nxe4.} 8. Nf3 {[%emt 0:01:49]} O-O {[%emt 0:00:07]} 9. d4 {[%emt 0:00:19]} d5 {[%emt 0:00:01]} 10. c3 {[%emt 0:00:51] [#] Black did not feel at home in the position after the opening.  Weighted Error Value: White=0.00 (flawless) /Black=0.05 (flawless)} {Predecessor:} Bd6 $146 11. Bd3 Re8 12. Rxe8+ Qxe8 13. Na3 a6 14. Nc2 g6 15. Bg5 Qf8 16. Qd2 f6 {½-½ (55) Svidler,P (2694)-Nakamura,H (2736) Chess.com INT 2021} 1/2-1/2

[Event "Saint Louis Norm Congress-GM 2022"]
[Site "Saint Louis"]
[Date "2022.05.21"]
[Round "5.2"]
[White "Matviishen, Viktor"]
[Black "Repka, Christopher"]
[Result "0-1"]
[ECO "D20"]
[WhiteElo "2517"]
[BlackElo "2524"]
[Annotator "TA"]
[PlyCount "98"]
[EventDate "2022.05.20"]
[EventType "tourn"]
[EventCountry "USA"]
[SourceTitle "playchess.com"]
[Source "ChessBase"]
[SourceQuality "1"]
[TimeControl "5400+30"]

{[%evp 9,98,31,47,31,74,68,64,77,78,67,64,11,28,6,12,-342,-317,-318,-300,-349,-228,-232,-183,-184,-172,-173,-161,-402,-439,-373,-318,-275,-263,-258,-263,-595,-391,-445,-438,-425,-422,-408,-374,-366,-366,-864,-853,-778,-778,-942,-935,-975,-1116,-951,-1072,-980,-951,-785,-1061,-1243,-1252,-1207,-1202,-1147,-1126,-1131,-1072,-817,-899,-1098,-1078,-1195,-1114,-1367,-1381,-1308,-1580,-1158,-962,-1018,-996,-12842,-2485,-12843,-12843,-12844,-12844,-12844,-12845,-12844,-12843]} 1. d4 {[%emt 0:00:04]} d5 {[%emt 0:00:09]} 2. c4 {[%emt 0:00:04]} dxc4 {[%emt 0:00:03]} 3. e4 {[%emt 0:00:24]} b5 {[%emt 0:00:05]} 4. a4 {[%emt 0:00:24]} c6 {[%emt 0:00:03]} 5. axb5 {[%emt 0:00:05]} cxb5 {[%emt 0:00:03]} 6. Nc3 {[%emt 0:00:06][%cal Bb1c3,Bc3d5,Bd5c7][%mdl 32] D20: Queen's Gambit Accepted: 3 e3 and 3 e4.} Qb6 {[%emt 0:00:03]} 7. Nd5 {[%emt 0:02:01]} Qb7 {[%emt 0:04:02]} 8. Bf4 {[%emt 0:00:02] aiming for Nc7+. White is slightly better.} e5 {[%emt 0:00:03]} 9. Bxe5 {[%emt 0:00:08]} Nd7 $1 {[%emt 0:00:04][%cal Bb8d7,Bd7c5,Bc5e4][%mdl 32]} 10. Bg3 {[%emt 0:05:58]} (10. Bf4 $1 $14) 10... Ngf6 $11 {[%emt 0:00:12]} 11. Nc7+ {[%emt 0:00:06]} Kd8 {[%emt 0:00:03] [#] And now ...Bb4+ would win.} 12. Qf3 $146 {[%emt 0:45:18][%mdl 8192] This move loses the game for White.} (12. Be2 $11 {and White stays safe.} Nxe4 13. Bf3 (13. Nxa8 Bb4+ 14. Kf1 Qxa8 $14) 13... Bb4+ 14. Kf1) ({Predecessor:} 12. f3 Rb8 13. Na6 Ra8 14. Nh3 h6 15. Qd2 Ne8 16. Nf4 Qc6 17. Nb4 Bxb4 18. Qxb4 {0-1 (42) Praggnanandhaa,R (2608)-Abdumalik,Z (2472) chess24.com INT 2021}) 12... Bb4+ $19 {[%emt 0:05:31]} 13. Kd1 {[%emt 0:00:05] [#]} Nc5 $1 {[%emt 0:03:37][%cal Oc8g4][%mdl 512] White must now prevent ...Bg4!} 14. Be5 {[%emt 0:00:11] [#]} ({But not} 14. dxc5 {[#]} Bg4 $1 15. Kc2 Bxf3 $19) (14. Be2 Nb3) 14... Ncxe4 {[%emt 0:03:36] ...Bg4 is the strong threat.} 15. Kc2 {[%emt 0:00:31]} Bg4 {[%emt 0:07:19]} 16. Bxf6+ {[%emt 0:12:55]} gxf6 {[%emt 0:00:05]} 17. Qxg4 {[%emt 0:00:54]} Kxc7 {[%emt 0:00:04] The board is on fire.} 18. f3 $2 {[%emt 0:14:59]} (18. Be2) 18... Nd6 {[%emt 0:00:21]} 19. Ne2 {[%emt 0:00:04]} h5 {[%emt 0:02:54][%cal Bh7h5,Bh5h4][%mdl 32]} 20. Qf4 {[%emt 0:00:15]} Qd5 {[%emt 0:02:16]} 21. Qxf6 {[%emt 0:09:54]} a5 {[%emt 0:04:54]} 22. Ng3 $2 {[%emt 0:03:17]} (22. Kb1 {is tougher.}) 22... h4 {[%emt 0:04:44]} 23. Qe5 {[%emt 0:02:37]} Qxe5 {[%emt 0:02:04]} 24. dxe5 {[%emt 0:00:01]} hxg3 {[%emt 0:00:08]} 25. exd6+ {[%emt 0:00:02]} Bxd6 {[%emt 0:00:12]} 26. h4 {[%emt 0:00:04]} Rh5 {[%emt 0:00:28] Hoping for ...a4.} 27. b3 {[%emt 0:00:44]} (27. Re1) 27... cxb3+ {[%emt 0:00:17] Black is clearly winning.} 28. Kxb3 {[%emt 0:00:01]} a4+ {[%emt 0:00:06]} 29. Ka2 {[%emt 0:00:28]} Rd5 {[%emt 0:00:15]} 30. Rb1 {[%emt 0:01:29]} b4 {[%emt 0:00:24][%cal Bb5b4,Bb4b3][%mdl 32]} 31. Rc1+ {[%emt 0:00:05]} Kb6 {[%emt 0:00:07] ( -> ...Rd2+)} 32. Bc4 {[%emt 0:00:02]} Rd2+ {[%emt 0:00:49]} 33. Kb1 {[%emt 0:00:00]} Be5 {[%emt 0:04:21]} 34. Rc2 {[%emt 0:00:05] Against Rb2+} Rxc2 35. Kxc2 {[%emt 0:00:01][%mdl 4096] Endgame KRB-KRB} b3+ {[%emt 0:00:20]} 36. Kd3 {[%emt 0:01:49]} Rd8+ {[%emt 0:00:34]} 37. Ke3 {[%emt 0:00:45]} Kc5 {[%emt 0:05:23]} 38. Bxf7 {[%emt 0:00:16]} Rd7 {[%emt 0:00:27]} 39. Bg8 {[%emt 0:01:52]} Kb4 {[%emt 0:00:10]} 40. Rb1 {[%emt 0:01:11]} Re7 {[%emt 0:00:06]} 41. Kd3 {[%emt 0:00:19]} Bf4 {[%emt 0:00:03]} 42. h5 {[%emt 0:01:01]} Re3+ {[%emt 0:00:02]} 43. Kd4 {[%emt 0:00:03]} Re2 {[%emt 0:00:13]} 44. Rh1 {[%emt 0:00:29]} Rxg2 {[%emt 0:00:16]} 45. Rh4 {[%emt 0:00:31]} Rd2+ {[%emt 0:00:09]} 46. Ke4 {[%emt 0:00:06]} g2 {[%emt 0:00:29]} 47. Rg4 {[%emt 0:00:02]} b2 {[%emt 0:00:16]} 48. Ba2 {[%emt 0:00:09]} Ka3 {[%emt 0:00:16]} 49. Bb1 {[%emt 0:00:12]} Rd1 {[%emt 0:00:04] Weighted Error Value: White=0.86/Black=0.14 (very precise)} 0-1

[Event "Saint Louis Norm Congress-GM 2022"]
[Site "Saint Louis"]
[Date "2022.05.21"]
[Round "5.3"]
[White "Kavutskiy, Konstantin"]
[Black "Brodsky, David"]
[Result "1/2-1/2"]
[ECO "D37"]
[WhiteElo "2407"]
[BlackElo "2484"]
[Annotator "TA"]
[PlyCount "27"]
[EventDate "2022.05.20"]
[EventType "tourn"]
[EventCountry "USA"]
[SourceTitle "playchess.com"]
[Source "ChessBase"]
[SourceQuality "1"]
[TimeControl "5400+30"]

{[%evp 9,27,26,25,25,27,31,27,29,26,9,38,33,38,44,36,0,36,0,49,0]} 1. d4 {[%emt 0:01:48]} Nf6 {[%emt 0:00:04]} 2. c4 {[%emt 0:00:18]} e6 {[%emt 0:00:03]} 3. Nf3 {[%emt 0:00:28]} a6 {[%emt 0:00:04]} 4. Nc3 {[%emt 0:00:59]} d5 {[%emt 0:00:04]} 5. cxd5 {[%emt 0:00:08]} exd5 {[%emt 0:00:04]} 6. Bg5 {[%emt 0:00:08] D37: Queen's Gambit Declined: 5 Bf4.} Be6 {[%emt 0:00:08]} 7. e3 {[%emt 0:00:07]} (7. Ne5 {seems wilder.} c5 8. e3 Nc6 9. Nxc6 bxc6 10. Be2) 7... Nbd7 {[%emt 0:00:05]} 8. Bd3 {[%emt 0:00:09] White has an edge.} h6 {[%emt 0:00:10]} 9. Bh4 {[%emt 0:01:52]} g5 {[%emt 0:00:26]} 10. Bg3 {[%emt 0:00:20]} Nh5 {[%emt 0:00:04]} 11. Be5 {[%emt 0:01:14]} Nhf6 {[%emt 0:00:20]} 12. Bg3 {[%emt 0:00:27]} Nh5 $1 {[%emt 0:00:06] [#]} 13. Be5 $146 {[%emt 0:05:24]} ({Predecessor:} 13. Qb3 Nxg3 14. hxg3 c5 15. Qc2 Rc8 16. dxc5 Nxc5 17. Nd4 Bg7 18. O-O O-O 19. Rfe1 Qb6 20. Bh7+ Kh8 {½-½ (70) Sarana,A (2685)-Andreikin,D (2724) Chess.com INT 2022}) 13... Nhf6 {[%emt 0:00:07]} 14. Bg3 {[%emt 0:00:09] Weighted Error Value: White=0.11 (very precise) /Black=0.03 (flawless)} (14. Qb3 $14 {deserves consideration.}) 1/2-1/2

[Event "Saint Louis Norm Congress-GM 2022"]
[Site "Saint Louis"]
[Date "2022.05.21"]
[Round "5.4"]
[White "Schitco, Ivan"]
[Black "Belous, Vladimir"]
[Result "0-1"]
[ECO "A28"]
[WhiteElo "2484"]
[BlackElo "2525"]
[Annotator "TA"]
[PlyCount "76"]
[EventDate "2022.05.20"]
[EventType "tourn"]
[EventCountry "USA"]
[SourceTitle "playchess.com"]
[Source "ChessBase"]
[SourceQuality "1"]
[TimeControl "5400+30"]

{[%evp 9,76,4,11,10,9,6,10,8,5,-4,2,6,25,25,18,0,25,25,82,100,89,91,138,134,142,41,41,25,42,22,14,9,8,0,0,0,6,0,78,62,54,59,60,-46,-54,-102,-47,-266,-271,-301,-301,-416,-409,-470,-437,-527,-376,-640,-616,-1255,-1295,-2586,-2559,-29973,-5052,-5052,-5052,-29987,-29988]} 1. c4 {[%emt 0:00:06]} e5 {[%emt 0:02:05]} 2. Nc3 {[%emt 0:01:00]} Nf6 {[%emt 0:00:46]} 3. Nf3 {[%emt 0:00:34]} Nc6 {[%emt 0:00:15]} 4. e4 {[%emt 0:00:32]} Bb4 {[%emt 0:00:30]} 5. d3 {[%emt 0:00:57]} d6 {[%emt 0:00:25]} 6. a3 {[%emt 0:00:14] A28: English Opening: Four Knights Variation.} Bxc3+ {[%emt 0:01:13]} 7. bxc3 {[%emt 0:00:06]} O-O {[%emt 0:00:07]} 8. g3 {[%emt 0:00:19] The position is equal.} Be6 {[%emt 0:07:52]} 9. Bg2 {[%emt 0:02:16]} h6 {[%emt 0:03:20]} 10. O-O {[%emt 0:01:43]} a6 {[%emt 0:00:43]} 11. a4 {[%emt 0:02:28] [#]} Na5 $146 {[%emt 0:05:40]} ({Predecessor:} 11... Qd7 12. Nh4 g5 13. f4 Bg4 14. Nf3 Nh7 15. fxg5 hxg5 16. h3 Bxh3 17. Nxg5 Nxg5 18. Bxg5 {1-0 (44) Lu,M (2337)-Mei,A (2336) San Jose 2022}) 12. Nh4 {[%emt 0:19:06]} c6 {[%emt 0:03:16]} 13. Rb1 {[%emt 0:13:06]} d5 {[%emt 0:06:29]} (13... Rb8 $11) 14. Be3 $1 $16 {[%emt 0:05:40][%cal Bc1e3,Be3b6,Bb6a5][%mdl 32]} dxe4 {[%emt 0:08:08]} (14... dxc4 $2 15. Bb6 Qd7 16. Bxa5 $18) 15. Bb6 {[%emt 0:00:23]} Qd7 {[%emt 0:14:26]} 16. Bxa5 {[%emt 0:01:36]} g5 {[%emt 0:00:03]} 17. Nf3 {[%emt 0:09:10]} exf3 $14 {[%emt 0:00:11]} 18. Qxf3 {[%emt 0:00:17]} Kg7 {[%emt 0:00:05]} 19. Rfe1 {[%emt 0:04:32]} Rfe8 {[%emt 0:00:47]} 20. Qe3 {[%emt 0:05:57]} Bh3 {[%emt 0:05:23]} 21. Bh1 {[%emt 0:04:59]} b5 {[%emt 0:03:08]} 22. axb5 {[%emt 0:04:42]} axb5 {[%emt 0:00:26]} 23. cxb5 {[%emt 0:00:40]} Rxa5 {[%emt 0:04:32]} (23... cxb5 $11 {keeps the balance.} 24. Bxa8 Rxa8) 24. Bxc6 $16 {[%emt 0:00:14]} Qd8 {[%emt 0:00:57]} 25. Bxe8 {[%emt 0:00:19]} Qxe8 {[%emt 0:00:02]} 26. b6 {[%emt 0:02:24]} ({Don't play} 26. Qxe5 Qa8 27. f3 (27. Re4 Ra1 $11) 27... Ra2 $11) ({White should play} 26. g4 $1 $14 Bxg4 27. Qxe5) 26... Qc6 $36 {[%emt 0:02:18][%csl Gh3][%cal Rc6g2][%mdl 3072] Black has compensation. Black has the initiative.} 27. f3 {[%emt 0:00:05] [#]} Bc8 {[%emt 0:00:04] aiming for ...g4. Black is more active.} 28. c4 $2 {[%emt 0:03:32] [#] White does not recover from this.} (28. h3 $1 $15) 28... g4 $1 $19 {[%emt 0:03:15][%cal Bg5g4,Bg4f3][%mdl 32]} 29. Rf1 {[%emt 0:07:36][%cal Oh2h3]} Bb7 {[%emt 0:00:55][%cal Rg4f3]} 30. Rf2 {[%emt 0:00:52]} gxf3 {[%emt 0:03:28] Strongly threatening ...Qd7.} 31. h3 {[%emt 0:00:01]} Qd7 {[%emt 0:00:44]} 32. c5 {[%emt 0:02:09]} Qd5 {[%emt 0:00:56] And now ...Ra3 would win.} 33. Rc1 $2 {[%emt 0:01:00]} (33. g4 Nd7 34. g5) 33... Ra3 {[%emt 0:04:14]} 34. Rd1 {[%emt 0:05:12]} e4 {[%emt 0:02:08][%cal Be5e4,Be4e3][%mdl 32]} 35. Rfd2 {[%emt 0:00:26]} Qh5 {[%emt 0:01:56]} 36. Qf4 {[%emt 0:01:42]} Qxc5+ {[%emt 0:00:38]} 37. d4 {[%emt 0:01:18]} Qd5 {[%emt 0:00:23] ( -> ...e3)} 38. Re1 {[%emt 0:01:09] Prevents e3.} e3 {[%emt 0:00:11] Weighted Error Value: White=0.98/Black=0.11 (very precise)} 0-1

[Event "Saint Louis Norm Congress-GM 2022"]
[Site "Saint Louis"]
[Date "2022.05.21"]
[Round "5.5"]
[White "Daggupati, Balaji"]
[Black "Ruiz Castillo, Joshua Daniel"]
[Result "1/2-1/2"]
[ECO "C16"]
[WhiteElo "2486"]
[BlackElo "2473"]
[Annotator "TA"]
[PlyCount "57"]
[EventDate "2022.05.20"]
[EventType "tourn"]
[EventCountry "USA"]
[SourceTitle "playchess.com"]
[Source "ChessBase"]
[SourceQuality "1"]
[TimeControl "5400+30"]

{[%evp 12,57,29,33,25,27,50,14,20,0,25,27,43,46,49,50,62,41,53,0,58,0,57,57,44,39,35,45,75,20,22,22,26,0,0,0,0,0,0,0,0,-20,-20,-20,-20,-9,-16,-62]} 1. e4 {[%emt 0:00:03]} e6 {[%emt 0:00:04]} 2. d4 {[%emt 0:00:12]} d5 {[%emt 0:00:06]} 3. Nc3 {[%emt 0:00:04]} Bb4 {[%emt 0:00:03]} 4. e5 {[%emt 0:00:07]} b6 {[%emt 0:00:04]} 5. Qg4 {[%emt 0:00:11]} Bf8 {[%emt 0:00:04]} 6. Nf3 {[%emt 0:01:13]} Qd7 {[%emt 0:01:26]} 7. Bb5 {[%emt 0:00:23]} c6 {[%emt 0:00:02] C16: French: 3 Nc3 Bb4 4 e5: Lines without ...c5.} 8. Be2 {[%emt 0:00:07]} Ba6 {[%emt 0:00:25]} 9. Bxa6 {[%emt 0:01:37]} Nxa6 {[%emt 0:00:03]} 10. O-O {[%emt 0:05:35]} c5 {[%emt 0:05:07]} 11. Ne2 {[%emt 0:02:58]} Ne7 {[%emt 0:01:11]} 12. Ng3 {[%emt 0:04:22] [#]} Nb4 $146 {[%emt 0:11:47]} ({Predecessor:} 12... cxd4 13. Nxd4 g6 14. Qe2 Nc7 15. Bg5 Bg7 16. Qe3 Nc6 17. Nxc6 Qxc6 18. Ne2 Qc5 19. Nd4 Nb5 20. c3 O-O 21. Rac1 Rac8 22. h4 h6 23. Bf4 h5 24. Bg5 Nxd4 {0-1 (23) Janosi,E (1849)-Rakovic,M (2213) LSS email 2010}) 13. c3 {[%emt 0:07:57]} Nd3 {[%emt 0:01:17]} 14. dxc5 {[%emt 0:03:58]} bxc5 {[%emt 0:04:28]} 15. c4 {[%emt 0:02:57]} (15. Rd1 $14 c4 16. b3) 15... Rb8 {[%emt 0:04:50]} (15... Nc6 $11) 16. Rd1 {[%emt 0:10:24]} (16. Nh5 $14) 16... Nxc1 {[%emt 0:04:23]} (16... Nxb2 $2 17. Rb1 $18) ({Black should try} 16... dxc4 $1 $11 17. Qxc4 Nxe5 18. Rxd7 Nxc4 19. Rxa7 Nc6) 17. Raxc1 $14 {[%emt 0:01:05] [#] And now Ne4 would win.} d4 $1 {[%emt 0:00:04]} 18. Ne1 {[%emt 0:04:54]} Nc6 {[%emt 0:07:03]} 19. Nh5 {[%emt 0:04:47]} Qc7 {[%emt 0:00:20] [#]} 20. f4 {[%emt 0:05:53] White is more active.} ({Of course not} 20. Nxg7+ Kd7 21. Nh5 Nxe5 $11) (20. Nd3 $1 $16) 20... g6 $11 {[%emt 0:02:59]} 21. Nf6+ {[%emt 0:00:04]} Kd8 {[%emt 0:00:05]} 22. Nd3 {[%emt 0:01:14]} Nb4 {[%emt 0:01:28] The position is equal.} 23. Nxb4 {[%emt 0:06:49]} Rxb4 {[%emt 0:00:33]} 24. b3 {[%emt 0:00:43]} Qb7 {[%emt 0:01:21]} 25. Re1 {[%emt 0:11:33]} h5 {[%emt 0:03:58]} 26. Qh3 {[%emt 0:01:00]} a5 {[%emt 0:03:07]} 27. Qd3 {[%emt 0:03:40]} Kc7 {[%emt 0:03:02]} 28. Ne4 {[%emt 0:02:25]} Be7 {[%emt 0:00:46]} 29. Nd2 {[%emt 0:00:56] Weighted Error Value: White=0.15 (very precise) /Black=0.12 (very precise)} (29. Rf1 $11) 1/2-1/2